fUSD/lending_fUSD_20260605
["ID","MTS","AMOUNT","RATE_DAILY","PERIOD"]
[424189055,1780635060000,-300.0,0.00035039,2]
[424189050,1780635060000,-3206.51250246,0.00035039,2]
[424189057,1780635060000,-300.0,0.00035039,2]
[424189053,1780635060000,-535.40148659,0.00035039,2]
[424189049,1780635060000,-300.0,0.00035039,2]
[424189052,1780635060000,-1069.74260505,0.00035039,2]
[424189058,1780635060000,-300.0,0.00035039,2]
[424189056,1780635060000,-302.57479324,0.00035039,2]
[424189054,1780635060000,-727.95528898,0.00035039,2]
[424189060,1780635060000,-300.0,0.00035039,2]
[424189064,1780635060000,-300.0,0.00035039,2]
[424189069,1780635060000,-528.25355298,0.00035039,2]
[424189070,1780635060000,-300.0,0.00035039,2]
[424189063,1780635060000,-300.0,0.00035039,2]
[424189062,1780635060000,-300.0,0.00035039,2]
[424189068,1780635060000,-344.84564358,0.00035039,2]
[424189072,1780635060000,-866.62523856,0.00035039,2]
[424189065,1780635060000,-300.0,0.00035039,2]
[424189067,1780635060000,-1080.21357232,0.00035039,2]
[424189061,1780635060000,-300.0,0.00035039,2]
[424189066,1780635060000,-300.0,0.00035039,2]
[424189137,1780635061000,-485.39259751,0.00035039,2]
[424189132,1780635061000,-453.07819494,0.00035039,2]
[424189141,1780635061000,-300.0,0.00035039,2]
[424189139,1780635061000,-301.84219742,0.00035039,2]
[424189135,1780635061000,-300.0,0.00035039,2]
[424189133,1780635061000,-300.0,0.00035039,2]
[424189138,1780635061000,-310.66121846,0.00035039,2]
[424189136,1780635061000,-302.26506196,0.00035039,2]
[424189151,1780635061000,-606.01943079,0.00035039,2]
[424189130,1780635061000,-512.60852236,0.00035039,2]
[424189134,1780635061000,-303.09086159,0.00035039,2]
[424189150,1780635061000,-300.0,0.00035039,2]
[424189155,1780635061000,-1069.74260505,0.00035039,2]
[424189143,1780635061000,-503.81736563,0.00035039,2]
[424189142,1780635061000,-1097.74908549,0.00035039,2]
[424189140,1780635061000,-300.0,0.00035039,2]
[424189144,1780635061000,-300.0,0.00035039,2]
[424189147,1780635061000,-300.0,0.00035039,2]
[424189145,1780635061000,-300.0,0.00035039,2]
[424189148,1780635061000,-493.96494702,0.00035039,2]
[424189146,1780635061000,-300.0,0.00035039,2]
[424189152,1780635061000,-300.0,0.00035039,2]
[424189154,1780635061000,-3206.51250246,0.00035039,2]
[424189156,1780635061000,-535.40148659,0.00035039,2]
[424189157,1780635061000,-727.95528898,0.00035039,2]
[424189131,1780635061000,-626.51557855,0.00035039,2]
[424189149,1780635061000,-300.0,0.00035039,2]
[424189129,1780635061000,-300.0,0.00035039,2]
[424189102,1780635061000,-300.0,0.00035039,2]
[424189120,1780635061000,-866.62523856,0.00035039,2]
[424189159,1780635061000,-302.57479324,0.00035039,2]
[424189100,1780635061000,-597.60176823,0.00035039,2]
[424189103,1780635061000,-300.0,0.00035039,2]
[424189101,1780635061000,-606.01943079,0.00035039,2]
[424189106,1780635061000,-1069.74260505,0.00035039,2]
[424189111,1780635061000,-300.0,0.00035039,2]
[424189114,1780635061000,-300.0,0.00035039,2]
[424189113,1780635061000,-300.00000001,0.00035039,2]
[424189105,1780635061000,-300.0,0.00035039,2]
[424189104,1780635061000,-3206.51250246,0.00035039,2]
[424189108,1780635061000,-727.95528898,0.00035039,2]
[424189115,1780635061000,-300.0,0.00035039,2]
[424189107,1780635061000,-535.40148659,0.00035039,2]
[424189112,1780635061000,-300.00000001,0.00035039,2]
[424189110,1780635061000,-301.35684721,0.00035039,2]
[424189109,1780635061000,-300.0,0.00035039,2]
[424189117,1780635061000,-300.0,0.00035039,2]
[424189128,1780635061000,-300.0,0.00035039,2]
[424189118,1780635061000,-344.84564358,0.00035039,2]
[424189127,1780635061000,-595.52105001,0.00035039,2]
[424189116,1780635061000,-1080.21357232,0.00035039,2]
[424189119,1780635061000,-528.25355298,0.00035039,2]
[424189121,1780635061000,-951.46597211,0.00035039,2]
[424189125,1780635061000,-1637.97013637,0.00035039,2]
[424189122,1780635061000,-1801.88721781,0.00035039,2]
[424189124,1780635061000,-300.0,0.00035039,2]
[424189123,1780635061000,-310.41093008,0.00035039,2]
[424189126,1780635061000,-300.0,0.00035039,2]
[424189158,1780635061000,-300.0,0.00035039,2]
[424189199,1780635061000,-1097.74908549,0.00035039,2]
[424189161,1780635061000,-301.35684721,0.00035039,2]
[424189191,1780635061000,-300.0,0.00035039,2]
[424189194,1780635061000,-300.0,0.00035039,2]
[424189193,1780635061000,-310.66121846,0.00035039,2]
[424189196,1780635061000,-576.89415263,0.00035039,2]
[424189188,1780635061000,-300.0,0.00035039,2]
[424189198,1780635061000,-300.0,0.00035039,2]
[424189197,1780635061000,-300.0,0.00035039,2]
[424189201,1780635061000,-300.0,0.00035039,2]
[424189202,1780635061000,-300.0,0.00035039,2]
[424189206,1780635061000,-300.0,0.00035039,2]
[424189203,1780635061000,-300.0,0.00035039,2]
[424189204,1780635061000,-300.0,0.00035039,2]
[424189195,1780635061000,-300.0,0.00035039,2]
[424189211,1780635061000,-300.0,0.00035039,2]
[424189200,1780635061000,-300.0,0.00035039,2]
[424189205,1780635061000,-301.25409699,0.00035039,2]
[424189207,1780635061000,-493.96494702,0.00035039,2]
[424189208,1780635061000,-300.0,0.00035039,2]
[424189212,1780635061000,-606.01943079,0.00035039,2]
[424189215,1780635061000,-3206.51250246,0.00035039,2]
[424189214,1780635061000,-300.0,0.00035039,2]
[424189218,1780635061000,-727.95528898,0.00035039,2]
[424189216,1780635061000,-1069.74260505,0.00035039,2]
[424189217,1780635061000,-535.40148659,0.00035039,2]
[424189213,1780635061000,-300.0,0.00035039,2]
[424189160,1780635061000,-300.0,0.00035039,2]
[424189210,1780635061000,-300.0,0.00035039,2]
[424189192,1780635061000,-485.39259751,0.00035039,2]
[424189209,1780635061000,-300.0,0.00035039,2]
[424189190,1780635061000,-300.0,0.00035039,2]
[424189153,1780635061000,-302.9582768,0.00035039,2]
[424189189,1780635061000,-300.0,0.00035039,2]
[424189162,1780635061000,-300.0,0.00035039,2]
[424189164,1780635061000,-300.0,0.00035039,2]
[424189174,1780635061000,-1368.46386986,0.00035039,2]
[424189163,1780635061000,-300.0,0.00035039,2]
[424189165,1780635061000,-300.00000001,0.00035039,2]
[424189168,1780635061000,-300.0,0.00035039,2]
[424189170,1780635061000,-528.25355298,0.00035039,2]
[424189171,1780635061000,-300.0,0.00035039,2]
[424189172,1780635061000,-866.62523856,0.00035039,2]
[424189166,1780635061000,-302.14543256,0.00035039,2]
[424189169,1780635061000,-344.84564358,0.00035039,2]
[424189173,1780635061000,-951.46597211,0.00035039,2]
[424189167,1780635061000,-1080.21357232,0.00035039,2]
[424189175,1780635061000,-310.41093008,0.00035039,2]
[424189187,1780635061000,-453.07819494,0.00035039,2]
[424189185,1780635061000,-300.0,0.00035039,2]
[424189180,1780635061000,-300.0,0.00035039,2]
[424189183,1780635061000,-300.0,0.00035039,2]
[424189178,1780635061000,-300.0,0.00035039,2]
[424189184,1780635061000,-512.60852236,0.00035039,2]
[424189186,1780635061000,-626.69317142,0.00035039,2]
[424189179,1780635061000,-300.0,0.00035039,2]
[424189177,1780635061000,-1637.97013637,0.00035039,2]
[424189182,1780635061000,-300.0,0.00035039,2]
[424189176,1780635061000,-300.0,0.00035039,2]
[424189181,1780635061000,-595.52105001,0.00035039,2]
[424189266,1780635062000,-730.559974,0.00035045,120]
[424189263,1780635062000,-485.39259751,0.00035039,2]
[424189265,1780635062000,-300.0,0.00035039,2]
[424189256,1780635062000,-453.07819494,0.00035039,2]
[424189254,1780635062000,-626.69317142,0.00035039,2]
[424189251,1780635062000,-300.0,0.00035039,2]
[424189255,1780635062000,-300.0,0.00035039,2]
[424189253,1780635062000,-300.0,0.00035039,2]
[424189252,1780635062000,-512.60852236,0.00035039,2]
[424189261,1780635062000,-300.0,0.00035039,2]
[424189250,1780635062000,-300.0,0.00035039,2]
[424189259,1780635062000,-300.0,0.00035039,2]
[424189262,1780635062000,-300.0,0.00035039,2]
[424189267,1780635062000,-976.7556371,0.00035045,120]
[424189287,1780635062000,-2044.20750017,0.00035269,2]
[424189268,1780635062000,-500.0,0.00035045,120]
[424189271,1780635062000,-928.2410471,0.00035045,120]
[424189272,1780635062000,-500.0,0.00035045,120]
[424189273,1780635062000,-571.1519785,0.00035045,120]
[424189270,1780635062000,-892.8568119,0.00035045,120]
[424189274,1780635062000,-163.5704503,0.00035045,120]
[424189269,1780635062000,-152.4350226,0.00035045,120]
[424189275,1780635062000,-354.258427,0.00035045,120]
[424189277,1780635062000,-500.0,0.00035045,120]
[424189279,1780635062000,-890.4991091,0.00035045,120]
[424189276,1780635062000,-554.4033122,0.00035045,120]
[424189288,1780635062000,-1232.8529294,0.00035269,2]
[424189260,1780635062000,-300.0,0.00035039,2]
[424189264,1780635062000,-310.66121846,0.00035039,2]
[424189258,1780635062000,-300.0,0.00035039,2]
[424189222,1780635062000,-300.0,0.00035039,2]
[424189247,1780635062000,-300.0,0.00035039,2]
[424189278,1780635062000,-500.0,0.00035045,120]
[424189221,1780635062000,-300.0,0.00035039,2]
[424189220,1780635062000,-302.57479324,0.00035039,2]
[424189219,1780635062000,-300.0,0.00035039,2]
[424189223,1780635062000,-301.35684721,0.00035039,2]
[424189224,1780635062000,-300.0,0.00035039,2]
[424189226,1780635062000,-300.0,0.00035039,2]
[424189234,1780635062000,-300.0,0.00035039,2]
[424189235,1780635062000,-300.0,0.00035039,2]
[424189236,1780635062000,-300.0,0.00035039,2]
[424189229,1780635062000,-300.0,0.00035039,2]
[424189228,1780635062000,-300.00000001,0.00035039,2]
[424189225,1780635062000,-300.0,0.00035039,2]
[424189227,1780635062000,-300.0,0.00035039,2]
[424189231,1780635062000,-300.0,0.00035039,2]
[424189233,1780635062000,-528.25355298,0.00035039,2]
[424189230,1780635062000,-1080.21357232,0.00035039,2]
[424189232,1780635062000,-344.84564358,0.00035039,2]
[424189237,1780635062000,-300.0,0.00035039,2]
[424189240,1780635062000,-1368.46386986,0.00035039,2]
[424189246,1780635062000,-300.0,0.00035039,2]
[424189239,1780635062000,-951.46597211,0.00035039,2]
[424189243,1780635062000,-310.41093008,0.00035039,2]
[424189244,1780635062000,-300.0,0.00035039,2]
[424189242,1780635062000,-300.0,0.00035039,2]
[424189241,1780635062000,-300.0,0.00035039,2]
[424189238,1780635062000,-866.62523856,0.00035039,2]
[424189248,1780635062000,-300.0,0.00035039,2]
[424189249,1780635062000,-595.52105001,0.00035039,2]
[424189257,1780635062000,-300.0,0.00035039,2]
[424189281,1780635062000,-500.0,0.00035045,120]
[424189245,1780635062000,-1637.97013637,0.00035039,2]
[424189280,1780635062000,-500.0,0.00035045,120]
[424189320,1780635062000,-1020.54510551,0.00035589,120]
[424189319,1780635062000,-1876.5,0.00035589,120]
[424189316,1780635062000,-200.0,0.00035584,5]
[424189346,1780635062000,-200.0,0.00035907,2]
[424189321,1780635062000,-200.0,0.00035593,5]
[424189318,1780635062000,-1876.5,0.00035589,120]
[424189325,1780635062000,-150.0,0.00035616,120]
[424189323,1780635062000,-150.0,0.00035616,30]
[424189322,1780635062000,-200.0,0.00035598,5]
[424189324,1780635062000,-2000.0,0.00035616,30]
[424189328,1780635062000,-819.0,0.00035665,3]
[424189338,1780635062000,-933.0,0.00035834,2]
[424189333,1780635062000,-150.0,0.00035753,120]
[424189339,1780635062000,-177.86,0.00035857,4]
[424189337,1780635062000,-419.0,0.00035834,2]
[424189340,1780635062000,-150.0,0.0003589,120]
[424189327,1780635062000,-706.15,0.00035616,2]
[424189329,1780635062000,-150.0,0.000357,120]
[424189332,1780635062000,-153.99245409,0.0003575,120]
[424189330,1780635062000,-166.06,0.00035725,4]
[424189331,1780635062000,-500.0,0.00035743,11]
[424189336,1780635062000,-150.0,0.00035834,2]
[424189335,1780635062000,-1273.0,0.00035834,2]
[424189334,1780635062000,-1357.0,0.00035834,2]
[424189341,1780635062000,-150.0,0.00035899,2]
[424189342,1780635062000,-264.58,0.000359,98]
[424189343,1780635062000,-200.0,0.00035907,2]
[424189344,1780635062000,-200.0,0.00035907,2]
[424189286,1780635062000,-231.45,0.000352,17]
[424189326,1780635062000,-181.79,0.00035616,30]
[424189317,1780635062000,-200.0,0.00035587,5]
[424189345,1780635062000,-200.0,0.00035907,2]
[424189309,1780635062000,-1000.0,0.0003547,2]
[424189315,1780635062000,-200.0,0.00035572,5]
[424189282,1780635062000,-791.896713,0.00035045,120]
[424189284,1780635062000,-662.78,0.00035106,2]
[424189283,1780635062000,-757.52,0.00035106,2]
[424189290,1780635062000,-2176.11197033,0.0003536,2]
[424189300,1780635062000,-716.0,0.00035422,30]
[424189291,1780635062000,-1893.46047422,0.0003536,2]
[424189301,1780635062000,-1824.0,0.00035422,30]
[424189289,1780635062000,-1252.7185281,0.0003536,2]
[424189292,1780635062000,-1341.92595082,0.0003536,2]
[424189294,1780635062000,-687.0,0.00035421,30]
[424189298,1780635062000,-541.0,0.00035421,30]
[424189293,1780635062000,-1726.07058047,0.0003536,2]
[424189296,1780635062000,-2473.0,0.00035421,30]
[424189285,1780635062000,-500.0,0.00035128,10]
[424189295,1780635062000,-471.0,0.00035421,30]
[424189307,1780635062000,-264.57,0.0003546,69]
[424189310,1780635062000,-538.0,0.00035472,30]
[424189308,1780635062000,-500.0,0.0003547,2]
[424189311,1780635062000,-2776.0,0.00035472,30]
[424189297,1780635062000,-377.0,0.00035421,30]
[424189305,1780635062000,-989.60843649,0.00035441,2]
[424189312,1780635062000,-2571.0,0.00035472,30]
[424189304,1780635062000,-1148.0,0.00035425,30]
[424189313,1780635062000,-15364.33,0.000355,30]
[424189302,1780635062000,-535.0,0.00035422,30]
[424189314,1780635062000,-672.17793519,0.00035519,2]
[424189303,1780635062000,-780.0,0.00035425,30]
[424189299,1780635062000,-2628.0,0.00035422,30]
[424189306,1780635062000,-501.98780834,0.00035445,2]
[424189386,1780635063000,-188.016442,0.00036011,30]
[424189387,1780635063000,-284.914396,0.00036011,30]
[424189389,1780635063000,-284.914396,0.00036011,30]
[424189392,1780635063000,-151.0,0.00036011,30]
[424189381,1780635063000,-1579.87382093,0.00036,14]
[424189373,1780635063000,-500.0,0.00035951,2]
[424189391,1780635063000,-151.0,0.00036011,30]
[424189382,1780635063000,-151.0,0.00036011,30]
[424189390,1780635063000,-284.914396,0.00036011,30]
[424189368,1780635063000,-500.0,0.00035917,120]
[424189380,1780635063000,-800.0,0.00036,2]
[424189393,1780635063000,-151.0,0.00036011,30]
[424189385,1780635063000,-188.016442,0.00036011,30]
[424189406,1780635063000,-276.67319783,0.00036102,60]
[424189383,1780635063000,-188.016442,0.00036011,30]
[424189388,1780635063000,-284.914396,0.00036011,30]
[424189399,1780635063000,-1541.829306,0.00036011,28]
[424189397,1780635063000,-565.045939,0.00036011,30]
[424189394,1780635063000,-565.045939,0.00036011,30]
[424189398,1780635063000,-1541.829306,0.00036011,28]
[424189405,1780635063000,-2037.72,0.00036096,120]
[424189400,1780635063000,-1541.829306,0.00036011,28]
[424189402,1780635063000,-150.0,0.00036027,120]
[424189403,1780635063000,-2098.1,0.00036043,30]
[424189396,1780635063000,-565.045939,0.00036011,30]
[424189375,1780635063000,-400.0,0.00035951,2]
[424189404,1780635063000,-25000.0,0.00036065,10]
[424189384,1780635063000,-188.016442,0.00036011,30]
[424189371,1780635063000,-150.0,0.00035951,2]
[424189362,1780635063000,-500.0,0.00035907,2]
[424189377,1780635063000,-318.07,0.00036,14]
[424189395,1780635063000,-565.045939,0.00036011,30]
[424189350,1780635063000,-200.0,0.00035907,2]
[424189347,1780635063000,-200.0,0.00035907,2]
[424189351,1780635063000,-200.0,0.00035907,2]
[424189349,1780635063000,-200.0,0.00035907,2]
[424189352,1780635063000,-200.0,0.00035907,2]
[424189348,1780635063000,-200.0,0.00035907,2]
[424189353,1780635063000,-200.0,0.00035907,2]
[424189355,1780635063000,-200.0,0.00035907,2]
[424189367,1780635063000,-541.0,0.00035907,2]
[424189365,1780635063000,-500.0,0.00035907,2]
[424189366,1780635063000,-500.0,0.00035907,2]
[424189354,1780635063000,-200.0,0.00035907,2]
[424189356,1780635063000,-200.0,0.00035907,2]
[424189357,1780635063000,-200.0,0.00035907,2]
[424189363,1780635063000,-500.0,0.00035907,2]
[424189360,1780635063000,-169.0,0.00035907,2]
[424189359,1780635063000,-200.0,0.00035907,2]
[424189361,1780635063000,-500.0,0.00035907,2]
[424189364,1780635063000,-500.0,0.00035907,2]
[424189358,1780635063000,-200.0,0.00035907,2]
[424189369,1780635063000,-409.20085646,0.00035951,2]
[424189379,1780635063000,-3455.64499375,0.00036,5]
[424189374,1780635063000,-400.0,0.00035951,2]
[424189378,1780635063000,-980.58,0.00036,14]
[424189376,1780635063000,-217.07711029,0.00036,60]
[424189370,1780635063000,-150.0,0.00035951,2]
[424189372,1780635063000,-500.0,0.00035951,2]
[424189401,1780635063000,-1541.829306,0.00036011,28]
[424189416,1780635063000,-151.0,0.00036105,30]
[424189448,1780635063000,-151.0,0.000364,30]
[424189433,1780635063000,-155.16,0.00036267,60]
[424189440,1780635063000,-718.0,0.00036315,30]
[424189437,1780635063000,-157.362817,0.00036282,11]
[424189438,1780635063000,-150.0,0.00036301,30]
[424189447,1780635063000,-151.0,0.000364,30]
[424189457,1780635063000,-160.673706,0.00036404,30]
[424189454,1780635063000,-388.640489,0.00036404,30]
[424189450,1780635063000,-151.0,0.00036404,30]
[424189458,1780635063000,-160.673706,0.00036404,30]
[424189456,1780635063000,-160.673706,0.00036404,30]
[424189452,1780635063000,-388.640489,0.00036404,30]
[424189455,1780635063000,-299.872565,0.00036404,30]
[424189449,1780635063000,-151.0,0.000364,30]
[424189435,1780635063000,-151.0,0.0003628,30]
[424189451,1780635063000,-388.640489,0.00036404,30]
[424189453,1780635063000,-388.640489,0.00036404,30]
[424189464,1780635063000,-2571.07,0.00036567,10]
[424189459,1780635063000,-160.673706,0.00036404,30]
[424189463,1780635063000,-480.06448529,0.00036561,2]
[424189465,1780635063000,-155.16,0.00036567,60]
[424189462,1780635063000,-1592.0,0.00036496,11]
[424189460,1780635063000,-25000.0,0.00036425,10]
[424189461,1780635063000,-155.16,0.00036467,60]
[424189466,1780635063000,-1250.73,0.00036579,2]
[424189468,1780635063000,-672.17793519,0.00036679,2]
[424189467,1780635063000,-155.16,0.00036667,60]
[424189417,1780635063000,-668.402565,0.00036105,30]
[424189469,1780635063000,-2744.67685896,0.000367,30]
[424189446,1780635063000,-151.0,0.000364,30]
[424189443,1780635063000,-220.09672793,0.00036359,7]
[424189439,1780635063000,-511.02,0.00036301,7]
[424189441,1780635063000,-264.58,0.0003634,114]
[424189407,1780635063000,-1062592.7839,0.00036105,30]
[424189419,1780635063000,-1277.391822,0.00036105,30]
[424189418,1780635063000,-668.402565,0.00036105,30]
[424189408,1780635063000,-836.056231,0.00036105,7]
[424189409,1780635063000,-836.056231,0.00036105,7]
[424189412,1780635063000,-151.0,0.00036105,30]
[424189414,1780635063000,-668.402565,0.00036105,30]
[424189413,1780635063000,-151.0,0.00036105,30]
[424189411,1780635063000,-836.056231,0.00036105,7]
[424189442,1780635063000,-500.0,0.00036357,12]
[424189410,1780635063000,-836.056231,0.00036105,7]
[424189420,1780635063000,-1277.391822,0.00036105,30]
[424189422,1780635063000,-1277.391822,0.00036105,30]
[424189427,1780635063000,-243.0,0.00036164,2]
[424189430,1780635063000,-152.0,0.0003619,5]
[424189415,1780635063000,-668.402565,0.00036105,30]
[424189444,1780635063000,-155.16,0.00036367,60]
[424189424,1780635063000,-270.93,0.00036135,30]
[424189421,1780635063000,-1277.391822,0.00036105,30]
[424189432,1780635063000,-2534.46,0.00036252,10]
[424189425,1780635063000,-4473.9,0.00036153,30]
[424189428,1780635063000,-365.57453798,0.00036164,2]
[424189429,1780635063000,-2534.46,0.00036188,10]
[424189426,1780635063000,-151.96771095,0.00036164,120]
[424189431,1780635063000,-2870.945,0.00036219,44]
[424189445,1780635063000,-51350.0,0.000364,30]
[424189434,1780635063000,-151.0,0.0003628,30]
[424189436,1780635063000,-162.094179,0.0003628,30]
[424189423,1780635063000,-159.04751025,0.00036111,60]
[424189510,1780635064000,-164.0,0.00036972,11]
[424189514,1780635064000,-1000.0,0.00036986,120]
[424189517,1780635064000,-1000.0,0.00036986,120]
[424189516,1780635064000,-1000.0,0.00036986,120]
[424189515,1780635064000,-1000.0,0.00036986,120]
[424189508,1780635064000,-800.0,0.00036971,13]
[424189499,1780635064000,-800.0,0.00036971,13]
[424189512,1780635064000,-150.0,0.00036986,30]
[424189506,1780635064000,-800.0,0.00036971,13]
[424189507,1780635064000,-800.0,0.00036971,13]
[424189505,1780635064000,-800.0,0.00036971,13]
[424189513,1780635064000,-1000.0,0.00036986,120]
[424189511,1780635064000,-23226.76,0.00036974,10]
[424189509,1780635064000,-500.0,0.00036972,12]
[424189532,1780635064000,-571.1519785,0.00036995,120]
[424189518,1780635064000,-1000.0,0.00036986,120]
[424189527,1780635064000,-500.0,0.00036995,120]
[424189529,1780635064000,-152.4350225,0.00036995,120]
[424189531,1780635064000,-928.241047,0.00036995,120]
[424189528,1780635064000,-892.8568118,0.00036995,120]
[424189526,1780635064000,-976.755637,0.00036995,120]
[424189522,1780635064000,-555466.71464135,0.00036988,120]
[424189521,1780635064000,-184.765,0.00036986,120]
[424189530,1780635064000,-500.0,0.00036995,120]
[424189519,1780635064000,-1000.0,0.00036986,120]
[424189524,1780635064000,-190.4122487,0.00036995,120]
[424189523,1780635064000,-730.5599739,0.00036995,120]
[424189520,1780635064000,-620.13497927,0.00036986,120]
[424189504,1780635064000,-800.0,0.00036971,13]
[424189525,1780635064000,-239.1111371,0.00036995,120]
[424189496,1780635064000,-800.0,0.00036971,13]
[424189471,1780635064000,-2744.67685895,0.000367,30]
[424189500,1780635064000,-800.0,0.00036971,13]
[424189470,1780635064000,-2744.67685895,0.000367,30]
[424189472,1780635064000,-2571.07,0.00036701,10]
[424189475,1780635064000,-719.04747942,0.00036746,2]
[424189473,1780635064000,-655.0,0.00036714,3]
[424189474,1780635064000,-896.77747134,0.00036745,2]
[424189476,1780635064000,-155.16,0.00036767,60]
[424189477,1780635064000,-264.58,0.0003678,120]
[424189478,1780635064000,-2321.0,0.00036796,11]
[424189479,1780635064000,-8673.17901098,0.000368,30]
[424189487,1780635064000,-257.0,0.000369,30]
[424189488,1780635064000,-1592.0,0.00036932,11]
[424189489,1780635064000,-1592.0,0.0003694,11]
[424189481,1780635064000,-164.59614063,0.000368,30]
[424189483,1780635064000,-164.0,0.00036815,11]
[424189480,1780635064000,-164.59614064,0.000368,30]
[424189485,1780635064000,-2531.07,0.0003689,10]
[424189484,1780635064000,-155.16,0.00036867,60]
[424189490,1780635064000,-1250.73,0.00036942,2]
[424189486,1780635064000,-815.2,0.000369,120]
[424189482,1780635064000,-26933.0,0.0003681,2]
[424189491,1780635064000,-2321.0,0.00036956,11]
[424189493,1780635064000,-800.0,0.00036971,13]
[424189501,1780635064000,-800.0,0.00036971,13]
[424189492,1780635064000,-155.16,0.00036967,60]
[424189502,1780635064000,-800.0,0.00036971,13]
[424189494,1780635064000,-800.0,0.00036971,13]
[424189503,1780635064000,-800.0,0.00036971,13]
[424189495,1780635064000,-800.0,0.00036971,13]
[424189497,1780635064000,-800.0,0.00036971,13]
[424189498,1780635064000,-800.0,0.00036971,13]
[424189534,1780635064000,-354.2584269,0.00036995,120]
[424189597,1780635064000,-152.80592456,0.00037472,2]
[424189535,1780635064000,-554.4033122,0.00036995,120]
[424189570,1780635064000,-1000.0,0.000372,2]
[424189571,1780635064000,-214.02898804,0.000372,120]
[424189573,1780635064000,-264.58,0.0003721,60]
[424189583,1780635064000,-1609.0,0.0003738,11]
[424189584,1780635064000,-84165.614,0.0003739,30]
[424189572,1780635064000,-151.0,0.00037201,2]
[424189576,1780635064000,-350.0,0.00037245,2]
[424189574,1780635064000,-15364.33,0.00037223,30]
[424189575,1780635064000,-500.0,0.00037245,7]
[424189578,1780635064000,-164.0,0.00037277,11]
[424189579,1780635064000,-1000.0,0.000373,120]
[424189580,1780635064000,-500.0,0.00037363,60]
[424189577,1780635064000,-159.20318347,0.0003726,30]
[424189582,1780635064000,-900.0,0.00037363,60]
[424189581,1780635064000,-500.0,0.00037363,60]
[424189585,1780635064000,-165.0,0.00037397,11]
[424189588,1780635064000,-2321.0,0.00037436,11]
[424189587,1780635064000,-1342.0,0.00037399,2]
[424189591,1780635064000,-407.0,0.00037449,2]
[424189589,1780635064000,-684.81445313,0.00037445,2]
[424189595,1780635064000,-1592.0,0.00037465,11]
[424189586,1780635064000,-1338.0,0.00037399,2]
[424189592,1780635064000,-150.0,0.00037449,2]
[424189593,1780635064000,-500.0,0.00037449,2]
[424189594,1780635064000,-400.0,0.00037449,2]
[424189590,1780635064000,-684.81445312,0.00037445,2]
[424189596,1780635064000,-151.59987049,0.00037469,2]
[424189599,1780635064000,-10089.33626068,0.000375,120]
[424189533,1780635064000,-163.5704502,0.00036995,120]
[424189567,1780635064000,-259.96,0.00037177,13]
[424189568,1780635064000,-315.0,0.000372,2]
[424189598,1780635064000,-353.43891165,0.00037475,2]
[424189565,1780635064000,-218.84,0.00037177,13]
[424189566,1780635064000,-218.83,0.00037177,13]
[424189544,1780635064000,-151.0,0.00037,60]
[424189537,1780635064000,-242.963508,0.00036995,120]
[424189543,1780635064000,-1345.77392565,0.00037,120]
[424189542,1780635064000,-791.896713,0.00036995,120]
[424189541,1780635064000,-500.0,0.00036995,120]
[424189539,1780635064000,-890.499109,0.00036995,120]
[424189538,1780635064000,-500.0,0.00036995,120]
[424189540,1780635064000,-500.0,0.00036995,120]
[424189546,1780635064000,-1231.06,0.00037,30]